[Event "Cellavision Cup 2019"]
[Site "Lund"]
[Date "2019.08.02"]
[Round "1.2"]
[White "Johansson, Roland"]
[Black "Kryakvin, Dmitry"]
[Result "0-1"]
[ECO "B13"]
[WhiteElo "2002"]
[BlackElo "2586"]
[Annotator "ChessBase"]
[PlyCount "78"]
[EventDate "2019.08.02"]
[EventType "swiss"]
[EventCountry "SWE"]
[SourceTitle "playchess.com"]
[Source "ChessBase"]
[SourceQuality "1"]
[TimeControl "900+5"]

1. e4 {[%emt 0:00:00]} c6 {[%emt 0:00:06]} 2. d4 {[%emt 0:00:00]} d5 {[%emt 0:00:02]} 3. exd5 {[%emt 0:00:02]} cxd5 {[%emt 0:00:02]} 4. c4 {[%emt 0:00:01]} Nf6 {[%emt 0:00:03]} 5. Nc3 {[%emt 0:00:01]} Nc6 {[%emt 0:00:06]} 6. Nf3 {[%emt 0:00:02]} Be6 {[%emt 0:00:01]} 7. c5 {[%emt 0:01:01]} g6 {[%emt 0:00:12]} 8. a3 {[%emt 0:00:05]} Bg7 {[%emt 0:00:14]} 9. Be2 {[%emt 0:00:19]} O-O {[%emt 0:00:11]} 10. O-O {[%emt 0:00:03]} Ne4 {[%emt 0:00:34]} 11. Qc2 {[%emt 0:00:28]} Bf5 {[%emt 0:02:34]} 12. Bd3 {[%emt 0:00:20]} Nxc3 {[%emt 0:00:12]} 13. Bxf5 {[%emt 0:01:05]} Nb5 {[%emt 0:00:08]} 14. Qd3 {[%emt 0:01:25]} Nbxd4 {[%emt 0:00:25]} 15. Bh3 {[%emt 0:00:01]} Nxf3+ {[%emt 0:00:37]} 16. Qxf3 {[%emt 0:00:02]} e6 {[%emt 0:00:07]} 17. Rb1 {[%emt 0:00:10]} a5 {[%emt 0:00:28]} 18. b4 {[%emt 0:00:04]} axb4 {[%emt 0:00:01]} 19. axb4 {[%emt 0:00:01]} Ne5 {[%emt 0:00:07]} 20. Qb3 {[%emt 0:01:17]} Nc4 {[%emt 0:00:07]} 21. Rd1 {[%emt 0:00:14]} Qh4 {[%emt 0:00:33]} 22. Rd3 {[%emt 0:01:08]} Rfc8 {[%emt 0:00:50]} 23. Rg3 {[%emt 0:00:07]} Qe4 {[%emt 0:01:27]} 24. Be3 {[%emt 0:03:02]} Ra3 {[%emt 0:00:31]} 25. Qd1 {[%emt 0:00:57]} Nxe3 {[%emt 0:00:08]} 26. Rxe3 {[%emt 0:00:15]} Rxe3 {[%emt 0:00:02]} 27. fxe3 {[%emt 0:00:01]} Qxe3+ {[%emt 0:00:06]} 28. Kh1 {[%emt 0:00:01]} Ra8 {[%emt 0:00:15]} 29. g3 {[%emt 0:00:44]} Ra2 {[%emt 0:00:16]} 30. Bg2 {[%emt 0:00:16]} Bd4 {[%emt 0:01:03]} 31. Qf3 {[%emt 0:01:04]} Kg7 {[%emt 0:00:17]} 32. Qxe3 {[%emt 0:00:25]} Bxe3 {[%emt 0:00:01]} 33. Bf1 {[%emt 0:00:01]} h5 {[%emt 0:00:14]} 34. Rb3 {[%emt 0:00:08]} Bd4 {[%emt 0:00:27]} 35. Bb5 {[%emt 0:00:57]} g5 {[%emt 0:01:09]} 36. c6 {[%emt 0:00:01]} bxc6 {[%emt 0:00:04]} 37. Bxc6 {[%emt 0:00:02]} g4 {[%emt 0:00:02]} 38. b5 {[%emt 0:00:07]} Ra1+ {[%emt 0:00:09]} 39. Kg2 Rg1# 0-1

[Event "Cellavision Cup 2019"]
[Site "Lund"]
[Date "2019.08.02"]
[Round "1.3"]
[White "Kulaots, Kaido"]
[Black "Olsson, Thomas"]
[Result "1-0"]
[ECO "C72"]
[WhiteElo "2560"]
[BlackElo "1969"]
[Annotator "ChessBase"]
[PlyCount "81"]
[EventDate "2019.08.02"]
[EventType "swiss"]
[EventCountry "SWE"]
[SourceTitle "playchess.com"]
[Source "ChessBase"]
[SourceQuality "1"]
[TimeControl "900+5"]

1. e4 {[%emt 0:00:00]} e5 {[%emt 0:00:00]} 2. Nf3 {[%emt 0:00:00]} Nc6 {[%emt 0:00:00]} 3. Bb5 {[%emt 0:00:03]} a6 {[%emt 0:00:01]} 4. Ba4 {[%emt 0:00:01]} d6 {[%emt 0:00:08]} 5. O-O {[%emt 0:00:11]} Bg4 {[%emt 0:00:07]} 6. h3 {[%emt 0:00:11]} Bd7 {[%emt 0:00:07]} 7. c3 {[%emt 0:00:25]} Nge7 {[%emt 0:00:06]} 8. d4 {[%emt 0:00:06]} Ng6 {[%emt 0:00:04]} 9. Re1 {[%emt 0:01:56]} Be7 {[%emt 0:00:04]} 10. Nbd2 {[%emt 0:00:13]} h6 {[%emt 0:00:06]} 11. Nf1 {[%emt 0:00:11]} O-O {[%emt 0:01:03]} 12. Ng3 {[%emt 0:00:13]} Bg5 {[%emt 0:00:29]} 13. Nxg5 {[%emt 0:00:40]} hxg5 {[%emt 0:00:06]} 14. d5 {[%emt 0:01:16]} Nb8 {[%emt 0:00:28]} 15. Bxd7 {[%emt 0:01:18]} Nxd7 {[%emt 0:00:01]} 16. Nf5 {[%emt 0:00:01]} Nf4 {[%emt 0:00:20]} 17. g3 {[%emt 0:00:48]} Ng6 {[%emt 0:02:08]} 18. Qh5 {[%emt 0:00:20]} Ne7 {[%emt 0:00:28]} 19. Bxg5 {[%emt 0:00:33]} f6 {[%emt 0:00:22]} 20. Be3 {[%emt 0:00:47]} Nxf5 {[%emt 0:00:26]} 21. Qxf5 {[%emt 0:00:02]} Qe7 {[%emt 0:00:19]} 22. h4 {[%emt 0:00:08]} Kf7 {[%emt 0:02:07]} 23. h5 {[%emt 0:00:06]} Rh8 {[%emt 0:00:04]} 24. Kg2 {[%emt 0:00:08]} Rag8 {[%emt 0:00:15]} 25. c4 {[%emt 0:00:23]} b6 {[%emt 0:00:06]} 26. b4 {[%emt 0:00:03]} Nf8 {[%emt 0:00:13]} 27. Rh1 {[%emt 0:00:25]} g6 {[%emt 0:01:13]} 28. hxg6+ {[%emt 0:00:05]} Nxg6 {[%emt 0:00:06]} 29. Rxh8 {[%emt 0:00:18]} Rxh8 {[%emt 0:00:07]} 30. c5 {[%emt 0:00:19]} bxc5 {[%emt 0:00:20]} 31. bxc5 {[%emt 0:00:01]} Rg8 {[%emt 0:00:26]} 32. Rh1 {[%emt 0:01:15]} Rg7 {[%emt 0:00:21]} 33. c6 {[%emt 0:00:13]} a5 {[%emt 0:00:19]} 34. a4 {[%emt 0:00:03]} Qe8 {[%emt 0:00:45]} 35. Kf3 {[%emt 0:00:18]} Nf8 {[%emt 0:01:19]} 36. Bh6 {[%emt 0:00:42]} Rh7 {[%emt 0:00:18]} 37. Kg2 {[%emt 0:00:23]} Ng6 {[%emt 0:00:14]} 38. Bg5 {[%emt 0:00:26]} Rxh1 {[%emt 0:00:17]} 39. Qxf6+ {[%emt 0:00:03]} Kg8 {[%emt 0:00:07]} 40. Kxh1 {[%emt 0:00:03]} Nf4 {[%emt 0:00:28]} 41. Qd8 {[%emt 0:00:28]} 1-0

[Event "Cellavision Cup 2019"]
[Site "Lund"]
[Date "2019.08.02"]
[Round "1.4"]
[White "Jonsson, Filip"]
[Black "Burg, Twan"]
[Result "0-1"]
[ECO "D47"]
[WhiteElo "1962"]
[BlackElo "2526"]
[Annotator "ChessBase"]
[PlyCount "70"]
[EventDate "2019.08.02"]
[EventType "swiss"]
[EventCountry "SWE"]
[SourceTitle "playchess.com"]
[Source "ChessBase"]
[SourceQuality "1"]
[TimeControl "900+5"]

1. d4 {[%emt 0:00:00]} d5 {[%emt 0:00:00]} 2. c4 {[%emt 0:00:00]} e6 {[%emt 0:00:21]} 3. Nc3 {[%emt 0:00:03]} c6 {[%emt 0:00:34]} 4. Nf3 {[%emt 0:00:07]} Nf6 {[%emt 0:00:04]} 5. e3 {[%emt 0:00:02]} Nbd7 {[%emt 0:00:03]} 6. Bd3 {[%emt 0:00:03]} dxc4 {[%emt 0:00:06]} 7. Bxc4 {[%emt 0:00:02]} b5 {[%emt 0:00:01]} 8. Be2 {[%emt 0:00:02]} Be7 {[%emt 0:00:45]} 9. e4 {[%emt 0:00:08]} b4 {[%emt 0:00:04]} 10. Na4 {[%emt 0:00:11]} Nxe4 {[%emt 0:00:20]} 11. Qc2 {[%emt 0:00:10]} Ndf6 {[%emt 0:00:37]} 12. O-O {[%emt 0:02:36]} O-O {[%emt 0:00:11]} 13. Ne5 {[%emt 0:00:15]} Bb7 {[%emt 0:00:43]} 14. Bf3 {[%emt 0:00:50]} Qxd4 {[%emt 0:00:17]} 15. Nxc6 {[%emt 0:00:24]} Bxc6 {[%emt 0:01:13]} 16. Qxc6 {[%emt 0:00:03]} Rac8 {[%emt 0:01:43]} 17. Qa6 {[%emt 0:00:20]} Nd5 {[%emt 0:00:18]} 18. Qe2 {[%emt 0:00:46]} Nef6 {[%emt 0:00:57]} 19. Rd1 {[%emt 0:00:24]} Qc4 {[%emt 0:00:05]} 20. Qe1 {[%emt 0:00:56]} Rfd8 {[%emt 0:00:28]} 21. b3 {[%emt 0:00:36]} Qb5 {[%emt 0:00:55]} 22. Bb2 {[%emt 0:00:10]} Nf4 {[%emt 0:00:07]} 23. Rxd8+ {[%emt 0:02:21]} Rxd8 {[%emt 0:00:53]} 24. Rd1 {[%emt 0:00:10]} Rxd1 25. Qxd1 Qd3 {[%emt 0:00:07]} 26. Qxd3 {[%emt 0:00:59]} Nxd3 {[%emt 0:00:02]} 27. Bd4 {[%emt 0:00:06]} Nc1 {[%emt 0:00:19]} 28. Bxa7 {[%emt 0:00:27]} Nxa2 {[%emt 0:00:01]} 29. Bd4 {[%emt 0:00:36]} Nc1 {[%emt 0:00:25]} 30. Bd1 {[%emt 0:00:12]} Nd5 {[%emt 0:00:14]} 31. Nb2 {[%emt 0:01:35]} Nc3 {[%emt 0:00:47]} 32. Bxc3 {[%emt 0:00:30]} bxc3 {[%emt 0:00:01]} 33. Nc4 {[%emt 0:00:26]} Ne2+ {[%emt 0:00:44]} 34. Kf1 {[%emt 0:00:25]} Nd4 35. Ne3 {[%emt 0:00:54]} Bg5 {[%emt 0:00:05]} 0-1

[Event "Cellavision Cup 2019"]
[Site "Lund"]
[Date "2019.08.02"]
[Round "1.5"]
[White "Marin, Mihail"]
[Black "Narva, David"]
[Result "1-0"]
[ECO "A02"]
[WhiteElo "2525"]
[BlackElo "1956"]
[Annotator "ChessBase"]
[PlyCount "53"]
[EventDate "2019.08.02"]
[EventType "swiss"]
[EventCountry "SWE"]
[SourceTitle "playchess.com"]
[Source "ChessBase"]
[SourceQuality "1"]
[TimeControl "900+5"]

1. f4 {[%emt 0:00:00]} d6 {[%emt 0:00:00]} 2. Nf3 {[%emt 0:00:08]} g6 {[%emt 0:00:10]} 3. g3 {[%emt 0:00:05]} Bg7 {[%emt 0:00:03]} 4. Bg2 {[%emt 0:00:02]} Nf6 {[%emt 0:01:03]} 5. O-O {[%emt 0:00:04]} O-O {[%emt 0:00:20]} 6. d3 {[%emt 0:00:02]} Nc6 {[%emt 0:02:12]} 7. e4 {[%emt 0:00:17]} e5 {[%emt 0:00:05]} 8. Na3 {[%emt 0:00:42]} exf4 {[%emt 0:01:45]} 9. gxf4 {[%emt 0:00:23]} Nh5 {[%emt 0:00:46]} 10. f5 {[%emt 0:02:31]} d5 {[%emt 0:01:30]} 11. Bg5 {[%emt 0:02:16]} Qd6 {[%emt 0:01:48]} 12. c3 {[%emt 0:00:19]} Ne5 {[%emt 0:01:11]} 13. d4 {[%emt 0:01:23]} Nxf3+ {[%emt 0:00:36]} 14. Bxf3 {[%emt 0:00:03]} dxe4 {[%emt 0:00:59]} 15. Bxh5 {[%emt 0:00:04]} gxh5 {[%emt 0:00:03]} 16. f6 {[%emt 0:00:21]} Bg4 {[%emt 0:00:32]} 17. Qd2 {[%emt 0:01:31]} Rfe8 {[%emt 0:02:08]} 18. fxg7 {[%emt 0:00:32]} e3 {[%emt 0:00:31]} 19. Qg2 {[%emt 0:02:50]} Qg6 {[%emt 0:00:47]} 20. Bh4 {[%emt 0:00:44]} e2 {[%emt 0:00:02]} 21. Rf4 {[%emt 0:00:22]} Qd3 {[%emt 0:00:04]} 22. Re1 {[%emt 0:00:32]} Qe3+ {[%emt 0:00:09]} 23. Qf2 {[%emt 0:00:15]} Qd2 {[%emt 0:00:01]} 24. Nc4 {[%emt 0:00:09]} Qc2 {[%emt 0:00:08]} 25. Ne5 {[%emt 0:00:06]} Be6 {[%emt 0:00:06]} 26. Rxe2 {[%emt 0:00:16]} Qc1+ {[%emt 0:00:03]} 27. Re1 {[%emt 0:00:03]} 1-0

[Event "Cellavision Cup 2019"]
[Site "Lund"]
[Date "2019.08.02"]
[Round "1.6"]
[White "Di Candia, Roberto"]
[Black "Blomqvist, Erik"]
[Result "0-1"]
[ECO "B22"]
[WhiteElo "1952"]
[BlackElo "2492"]
[Annotator "ChessBase"]
[PlyCount "56"]
[EventDate "2019.08.02"]
[EventType "swiss"]
[EventCountry "SWE"]
[SourceTitle "playchess.com"]
[Source "ChessBase"]
[SourceQuality "1"]
[TimeControl "900+5"]

1. e4 {[%emt 0:00:00]} c5 {[%emt 0:00:00]} 2. c3 {[%emt 0:00:00]} d5 {[%emt 0:00:11]} 3. exd5 {[%emt 0:00:04]} Qxd5 {[%emt 0:00:01]} 4. d4 {[%emt 0:00:02]} Nf6 {[%emt 0:00:04]} 5. Nf3 {[%emt 0:00:04]} e6 {[%emt 0:00:06]} 6. Be3 {[%emt 0:00:07]} cxd4 {[%emt 0:01:46]} 7. cxd4 {[%emt 0:00:01]} Bb4+ {[%emt 0:00:01]} 8. Nc3 {[%emt 0:00:13]} O-O {[%emt 0:00:04]} 9. a3 {[%emt 0:00:44]} Bxc3+ {[%emt 0:00:02]} 10. bxc3 {[%emt 0:00:01]} b6 {[%emt 0:00:06]} 11. Bd3 {[%emt 0:01:38]} Ba6 {[%emt 0:00:06]} 12. O-O {[%emt 0:00:43]} Rc8 {[%emt 0:00:55]} 13. Rc1 {[%emt 0:01:11]} Bxd3 {[%emt 0:03:34]} 14. Qxd3 {[%emt 0:00:02]} Nbd7 {[%emt 0:00:01]} 15. c4 {[%emt 0:03:04]} Qh5 {[%emt 0:00:35]} 16. Bf4 {[%emt 0:01:21]} h6 {[%emt 0:00:13]} 17. Rfe1 {[%emt 0:02:24]} Rd8 {[%emt 0:04:39]} 18. Bc7 {[%emt 0:01:39]} Re8 {[%emt 0:00:10]} 19. Bg3 {[%emt 0:00:02]} Qa5 {[%emt 0:00:19]} 20. Ne5 {[%emt 0:00:32]} Rac8 {[%emt 0:00:28]} 21. h3 {[%emt 0:00:11]} Red8 {[%emt 0:00:53]} 22. Qf3 {[%emt 0:01:27]} Nxe5 {[%emt 0:01:11]} 23. Rxe5 {[%emt 0:00:21]} Rd5 {[%emt 0:00:28]} 24. Rd1 {[%emt 0:00:35]} Rxc4 {[%emt 0:00:06]} 25. Bh4 {[%emt 0:00:19]} Rxe5 {[%emt 0:00:25]} 26. dxe5 {[%emt 0:00:12]} Nd5 {[%emt 0:00:02]} 27. Qg3 {[%emt 0:00:11]} Qa4 {[%emt 0:00:12]} 28. Rd3 {[%emt 0:00:04]} Rxh4 0-1

[Event "Cellavision Cup 2019"]
[Site "Lund"]
[Date "2019.08.02"]
[Round "1.7"]
[White "Hector, Jonny"]
[Black "Gajic, Zoran"]
[Result "1-0"]
[ECO "B06"]
[WhiteElo "2487"]
[BlackElo "2267"]
[Annotator "ChessBase"]
[PlyCount "59"]
[EventDate "2019.08.02"]
[EventType "swiss"]
[EventCountry "SWE"]
[SourceTitle "playchess.com"]
[Source "ChessBase"]
[SourceQuality "1"]
[TimeControl "900+5"]

1. e4 {[%emt 0:00:00]} g6 {[%emt 0:00:00]} 2. d4 {[%emt 0:00:02]} Bg7 {[%emt 0:00:00]} 3. f4 {[%emt 0:00:03]} d6 {[%emt 0:00:09]} 4. Nf3 {[%emt 0:00:03]} Nd7 {[%emt 0:00:02]} 5. e5 {[%emt 0:00:28]} e6 {[%emt 0:00:11]} 6. Be3 {[%emt 0:00:11]} Ne7 {[%emt 0:00:11]} 7. Bd3 {[%emt 0:00:14]} dxe5 {[%emt 0:01:04]} 8. fxe5 {[%emt 0:00:09]} O-O {[%emt 0:00:18]} 9. Nbd2 {[%emt 0:00:23]} Nd5 {[%emt 0:00:16]} 10. Bg5 {[%emt 0:00:11]} f6 {[%emt 0:00:14]} 11. exf6 {[%emt 0:00:02]} Bxf6 {[%emt 0:00:05]} 12. Ne4 {[%emt 0:00:32]} Bxg5 {[%emt 0:01:11]} 13. Nexg5 {[%emt 0:00:08]} Nf4 {[%emt 0:00:21]} 14. Qd2 {[%emt 0:00:04]} Nb6 {[%emt 0:00:37]} 15. O-O-O {[%emt 0:00:24]} Nxd3+ {[%emt 0:00:06]} 16. Qxd3 {[%emt 0:00:06]} Qd5 {[%emt 0:00:03]} 17. b3 {[%emt 0:00:19]} Rf5 {[%emt 0:01:08]} 18. h4 {[%emt 0:00:05]} Bd7 {[%emt 0:00:47]} 19. Ne5 {[%emt 0:00:04]} Re8 {[%emt 0:02:55]} 20. g4 {[%emt 0:00:09]} Rxe5 {[%emt 0:00:16]} 21. dxe5 {[%emt 0:00:04]} Qxe5 {[%emt 0:00:01]} 22. Kb1 {[%emt 0:00:23]} c5 {[%emt 0:00:28]} 23. Qf3 {[%emt 0:01:05]} Qg7 {[%emt 0:01:04]} 24. Qxb7 {[%emt 0:00:49]} Nd5 {[%emt 0:00:19]} 25. Rxd5 {[%emt 0:00:35]} exd5 {[%emt 0:00:00]} 26. Qxd5+ {[%emt 0:00:05]} Kh8 {[%emt 0:00:01]} 27. Rd1 {[%emt 0:00:33]} Bxg4 {[%emt 0:01:07]} 28. Nf7+ {[%emt 0:00:03]} Kg8 {[%emt 0:00:00]} 29. Nh6+ {[%emt 0:00:03]} Kh8 {[%emt 0:00:01]} 30. Nxg4 {[%emt 0:00:02]} 1-0

[Event "Cellavision Cup 2019"]
[Site "Lund"]
[Date "2019.08.02"]
[Round "1.8"]
[White "Carnstam, Tomas"]
[Black "Cramling, Pia"]
[Result "0-1"]
[ECO "A13"]
[WhiteElo "1967"]
[BlackElo "2479"]
[Annotator "ChessBase"]
[PlyCount "78"]
[EventDate "2019.08.02"]
[EventType "swiss"]
[EventCountry "SWE"]
[SourceTitle "playchess.com"]
[Source "ChessBase"]
[SourceQuality "1"]
[TimeControl "900+5"]

1. c4 {[%emt 0:00:00]} e6 {[%emt 0:00:07]} 2. Nc3 {[%emt 0:00:05]} b6 {[%emt 0:00:02]} 3. Nf3 {[%emt 0:00:12]} Bb7 {[%emt 0:00:03]} 4. e4 {[%emt 0:00:13]} Bb4 {[%emt 0:00:07]} 5. Qc2 {[%emt 0:00:12]} Ne7 {[%emt 0:00:05]} 6. d4 {[%emt 0:00:17]} O-O {[%emt 0:00:05]} 7. Bd3 {[%emt 0:00:22]} f5 {[%emt 0:00:04]} 8. d5 {[%emt 0:00:12]} Na6 {[%emt 0:00:16]} 9. a3 {[%emt 0:00:32]} Bxc3+ {[%emt 0:00:08]} 10. Qxc3 {[%emt 0:00:02]} Nc5 {[%emt 0:00:14]} 11. exf5 {[%emt 0:00:20]} exd5 {[%emt 0:00:09]} 12. Bg5 {[%emt 0:00:24]} Qe8 {[%emt 0:01:04]} 13. f6 {[%emt 0:00:29]} gxf6 {[%emt 0:00:30]} 14. Be3 {[%emt 0:00:31]} Nxd3+ {[%emt 0:00:36]} 15. Qxd3 {[%emt 0:00:02]} Qg6 {[%emt 0:00:04]} 16. O-O-O {[%emt 0:00:30]} Qxd3 {[%emt 0:00:06]} 17. Rxd3 {[%emt 0:00:01]} d6 {[%emt 0:00:11]} 18. cxd5 {[%emt 0:00:11]} Bxd5 {[%emt 0:00:20]} 19. Bh6 {[%emt 0:00:11]} Rfe8 {[%emt 0:00:03]} 20. Bd2 {[%emt 0:01:10]} Be4 {[%emt 0:00:08]} 21. Rd4 {[%emt 0:00:54]} Nf5 {[%emt 0:00:24]} 22. Rc4 {[%emt 0:00:08]} c5 {[%emt 0:00:02]} 23. Kd1 {[%emt 0:03:32]} d5 {[%emt 0:00:16]} 24. Rc1 {[%emt 0:00:01]} Kf7 {[%emt 0:00:25]} 25. Ne1 {[%emt 0:00:36]} Nd4 {[%emt 0:00:17]} 26. Rc3 {[%emt 0:00:24]} Bg6 {[%emt 0:00:20]} 27. f3 {[%emt 0:00:20]} c4 {[%emt 0:00:28]} 28. h4 {[%emt 0:01:01]} h5 {[%emt 0:00:03]} 29. b4 {[%emt 0:00:40]} a5 {[%emt 0:00:04]} 30. Re3 {[%emt 0:01:10]} axb4 {[%emt 0:00:03]} 31. Rxe8 {[%emt 0:00:11]} Kxe8 {[%emt 0:00:11]} 32. Bxb4 {[%emt 0:00:05]} Nc6 {[%emt 0:00:05]} 33. Nc2 {[%emt 0:00:33]} Kd7 {[%emt 0:00:12]} 34. Kd2 {[%emt 0:00:27]} Bxc2 {[%emt 0:00:10]} 35. Kxc2 {[%emt 0:00:01]} Nxb4+ {[%emt 0:00:07]} 36. axb4 {[%emt 0:00:02]} Ra2+ {[%emt 0:00:05]} 37. Kc3 {[%emt 0:00:08]} Rxg2 {[%emt 0:00:05]} 38. Rd1 {[%emt 0:00:19]} Kd6 {[%emt 0:00:13]} 39. Ra1 {[%emt 0:00:24]} Rf2 {[%emt 0:00:06]} 0-1

[Event "Cellavision Cup 2019"]
[Site "Lund"]
[Date "2019.08.02"]
[Round "1.9"]
[White "Dourerassou, Jonathan"]
[Black "Mitra, Akash"]
[Result "1-0"]
[ECO "B45"]
[WhiteElo "2477"]
[BlackElo "1957"]
[Annotator "ChessBase"]
[PlyCount "81"]
[EventDate "2019.08.02"]
[EventType "swiss"]
[EventCountry "SWE"]
[SourceTitle "playchess.com"]
[Source "ChessBase"]
[SourceQuality "1"]
[TimeControl "900+5"]

1. e4 {[%emt 0:00:00]} c5 {[%emt 0:00:00]} 2. Nc3 {[%emt 0:00:00]} e6 {[%emt 0:00:02]} 3. Nf3 {[%emt 0:00:01]} Nc6 {[%emt 0:00:06]} 4. d4 {[%emt 0:00:02]} cxd4 {[%emt 0:00:02]} 5. Nxd4 {[%emt 0:00:02]} Nf6 {[%emt 0:00:08]} 6. Be3 {[%emt 0:00:02]} Bb4 {[%emt 0:00:24]} 7. Nxc6 {[%emt 0:00:02]} bxc6 {[%emt 0:00:07]} 8. Bd3 {[%emt 0:00:02]} O-O {[%emt 0:00:06]} 9. e5 {[%emt 0:00:21]} Nd5 {[%emt 0:00:06]} 10. Bd2 {[%emt 0:00:03]} a5 {[%emt 0:00:39]} 11. O-O {[%emt 0:00:35]} d6 {[%emt 0:01:00]} 12. Qh5 {[%emt 0:01:11]} g6 {[%emt 0:00:39]} 13. Qe2 {[%emt 0:00:18]} dxe5 {[%emt 0:01:05]} 14. Qxe5 {[%emt 0:00:25]} Qf6 {[%emt 0:00:47]} 15. Qe1 {[%emt 0:00:31]} Nxc3 {[%emt 0:01:41]} 16. bxc3 {[%emt 0:00:06]} Bd6 {[%emt 0:01:11]} 17. Qe4 {[%emt 0:00:16]} Bb7 {[%emt 0:00:40]} 18. Rab1 {[%emt 0:00:36]} Rab8 {[%emt 0:00:01]} 19. c4 {[%emt 0:00:19]} Qe5 {[%emt 0:00:34]} 20. Qxe5 {[%emt 0:00:30]} Bxe5 {[%emt 0:00:01]} 21. Bxa5 {[%emt 0:00:02]} c5 {[%emt 0:00:41]} 22. Bb6 {[%emt 0:00:15]} Rfc8 {[%emt 0:01:04]} 23. Ba7 {[%emt 0:00:10]} Bc6 {[%emt 0:01:37]} 24. Bxb8 {[%emt 0:00:03]} Bxb8 {[%emt 0:00:02]} 25. Rb6 {[%emt 0:00:07]} Be5 {[%emt 0:00:17]} 26. Rfb1 {[%emt 0:00:13]} Rc7 {[%emt 0:00:04]} 27. Ra6 {[%emt 0:00:17]} Bd4 {[%emt 0:00:15]} 28. Kf1 {[%emt 0:00:29]} e5 {[%emt 0:00:00]} 29. Rbb6 {[%emt 0:00:11]} Bd7 {[%emt 0:00:21]} 30. Be4 {[%emt 0:00:03]} Be6 {[%emt 0:00:42]} 31. Bd5 {[%emt 0:01:13]} Bf5 {[%emt 0:00:08]} 32. Rb7 {[%emt 0:00:03]} Rxb7 {[%emt 0:00:10]} 33. Bxb7 {[%emt 0:00:02]} Bxc2 {[%emt 0:00:03]} 34. Ke2 {[%emt 0:00:03]} e4 {[%emt 0:00:09]} 35. Bd5 {[%emt 0:00:26]} Bd3+ {[%emt 0:00:32]} 36. Ke1 {[%emt 0:00:06]} Bc3+ {[%emt 0:00:13]} 37. Kd1 {[%emt 0:00:02]} Bd4 {[%emt 0:00:04]} 38. Ra8+ {[%emt 0:00:08]} Kg7 {[%emt 0:00:03]} 39. Ra7 {[%emt 0:00:01]} h5 {[%emt 0:00:40]} 40. Rxf7+ {[%emt 0:00:04]} Kh6 {[%emt 0:00:01]} 41. a4 {[%emt 0:00:11]} 1-0

[Event "Cellavision Cup 2019"]
[Site "Lund"]
[Date "2019.08.02"]
[Round "1.10"]
[White "Lindquist, Per"]
[Black "Popilski, Gil"]
[Result "0-1"]
[ECO "A40"]
[WhiteElo "1934"]
[BlackElo "2467"]
[Annotator "ChessBase"]
[PlyCount "58"]
[EventDate "2019.08.02"]
[EventType "swiss"]
[EventCountry "SWE"]
[SourceTitle "playchess.com"]
[Source "ChessBase"]
[SourceQuality "1"]
[TimeControl "900+5"]

1. d4 {[%emt 0:00:00]} Nf6 {[%emt 0:02:09]} 2. c4 {[%emt 0:00:05]} e6 {[%emt 0:00:02]} 3. g3 {[%emt 0:00:06]} Bb4+ {[%emt 0:00:02]} 4. Bd2 {[%emt 0:00:03]} Be7 {[%emt 0:00:02]} 5. Bg2 {[%emt 0:00:31]} O-O {[%emt 0:00:03]} 6. Nf3 {[%emt 0:00:43]} c5 {[%emt 0:00:01]} 7. O-O {[%emt 0:00:39]} cxd4 {[%emt 0:00:30]} 8. Nxd4 {[%emt 0:00:09]} Nc6 {[%emt 0:00:01]} 9. Nxc6 {[%emt 0:01:22]} bxc6 {[%emt 0:00:09]} 10. Nc3 {[%emt 0:00:49]} d5 {[%emt 0:00:26]} 11. cxd5 {[%emt 0:00:02]} cxd5 {[%emt 0:00:37]} 12. e4 {[%emt 0:01:10]} Ba6 {[%emt 0:00:24]} 13. Re1 {[%emt 0:01:05]} d4 {[%emt 0:00:02]} 14. Ne2 {[%emt 0:00:41]} e5 {[%emt 0:00:04]} 15. Qa4 {[%emt 0:00:30]} Qb6 {[%emt 0:00:07]} 16. b4 {[%emt 0:00:42]} Rfc8 {[%emt 0:01:28]} 17. Rac1 {[%emt 0:01:17]} Bc4 {[%emt 0:00:38]} 18. Kh1 {[%emt 0:00:38]} Ng4 {[%emt 0:00:25]} 19. Bh3 {[%emt 0:02:26]} Nxf2+ {[%emt 0:00:03]} 20. Kg2 {[%emt 0:00:01]} Nxh3 {[%emt 0:00:13]} 21. Kxh3 {[%emt 0:00:01]} Qb7 {[%emt 0:00:54]} 22. Ng1 {[%emt 0:00:14]} Bd3 {[%emt 0:00:15]} 23. Rxc8+ {[%emt 0:00:16]} Rxc8 {[%emt 0:00:02]} 24. Nf3 {[%emt 0:00:46]} Bxe4 {[%emt 0:01:12]} 25. Rxe4 {[%emt 0:01:05]} Qxe4 {[%emt 0:00:03]} 26. Qd7 {[%emt 0:00:10]} Rf8 {[%emt 0:00:08]} 27. Qxe7 {[%emt 0:00:02]} Qxf3 {[%emt 0:00:03]} 28. Qxe5 {[%emt 0:00:14]} Qf1+ {[%emt 0:00:19]} 29. Kh4 {[%emt 0:00:21]} Qf2 {[%emt 0:00:06]} 0-1